bitfinex/quotes_SOLUSD_20250525
["timestamp","ask_amount","ask_price","bid_price","bid_amount"]
[1748189535627,26.0710121,169.85,169.8,26.0710121]
[1748189536617,26.0710121,169.85,169.79,107.5710121]
[1748189539733,26.0710121,169.86,169.8,26.0710121]
[1748189539937,7.7955,169.88,169.79,219.3]
[1748189539938,26.0710121,169.87,169.81,26.0710121]
[1748189540121,26.0710121,169.87,169.82,35.28]
[1748189541437,7.7955,169.88,169.82,35.28]
[1748189541643,26.0710121,169.86,169.82,35.28]
[1748189542635,26.0710121,169.87,169.82,61.3510121]
[1748189543443,26.0710121,169.87,169.82,35.28]
[1748189543634,26.0710121,169.86,169.82,35.28]
[1748189543841,26.0710121,169.87,169.82,35.28]
[1748189544940,26.0710121,169.86,169.82,35.28]
[1748189545139,7.7955,169.88,169.82,35.28]
[1748189545438,26.0710121,169.87,169.82,61.3510121]
[1748189545640,26.0710121,169.87,169.83,3.33798361]
[1748189545852,26.0,169.92,169.85,8.42698118]
[1748189546145,26.0,169.92,169.86,38.59798361]
[1748189546327,26.0710121,169.9,169.86,38.59798361]
[1748189547018,26.0710121,169.9,169.87,3.33798361]
[1748189547927,26.0710121,169.9,169.88,3.33798361]
[1748189548325,26.0710121,169.92,169.89,84.62]
[1748189548622,26.0710121,169.92,169.9,74.16]
[1748189548818,26.0710121,169.93,169.9,74.16]
[1748189549229,1.5214,169.96,169.9,74.16]
[1748189549434,26.0710121,169.94,169.9,74.16]
[1748189549645,26.0710121,169.93,169.9,74.16]
[1748189549835,26.0710121,169.92,169.9,74.16]
[1748189550954,26.0710121,169.91,169.9,74.16]
[1748189554455,26.0710121,169.91,169.9,38.9]
[1748189554650,26.0710121,169.91,169.9,74.16]
[1748189554833,26.0710121,169.91,169.9,38.9]
[1748189555045,26.0710121,169.91,169.9,74.16]
[1748189559659,26.0710121,169.91,169.9,38.9]
[1748189559961,26.0710121,169.91,169.84,81.5]
[1748189559962,60.1164242,169.91,169.84,81.5]
[1748189560134,26.0710121,169.85,169.84,81.5]
[1748189560333,26.0710121,169.86,169.84,81.5]
[1748189560851,26.0710121,169.85,169.84,81.5]
[1748189561249,26.0710121,169.85,169.84,116.76]
[1748189562456,26.0710121,169.85,169.8,81.5]
[1748189562654,26.0710121,169.81,169.8,81.5]
[1748189563032,26.0710121,169.81,169.76,81.5]
[1748189563253,26.0710121,169.79,169.73,245.3710121]
[1748189563438,26.0710121,169.78,169.74,35.26]
[1748189563636,26.0710121,169.78,169.74,81.5]
[1748189563954,26.0710121,169.77,169.75,38.60225394]
[1748189564155,26.0710121,169.77,169.75,120.10225394]
[1748189564354,26.0710121,169.77,169.75,38.60225394]
[1748189564554,26.0,169.83,169.75,38.60225394]
[1748189564761,26.0710121,169.8,169.75,120.10225394]
[1748189564961,26.0710121,169.8,169.75,116.76]
[1748189565263,26.0710121,169.76,169.75,116.76]
[1748189565553,26.0710121,169.76,169.75,35.26]
[1748189567758,26.0710121,169.76,169.75,74.1]
[1748189567964,26.0710121,169.76,169.75,38.84]
[1748189568145,26.0710121,169.76,169.75,74.1]
[1748189568660,26.0710121,169.76,169.75,38.84]
[1748189568836,26.0710121,169.76,169.75,74.1]
[1748189569652,26.0710121,169.76,169.75,38.84]
[1748189569858,26.0710121,169.76,169.75,74.12]
[1748189570462,26.0710121,169.76,169.75,38.84]
[1748189570649,26.0710121,169.76,169.75,74.12]
[1748189574253,33.5775,169.81,169.75,74.12]
[1748189574450,26.0710121,169.77,169.75,74.12]
[1748189575062,26.0710121,169.78,169.75,74.12]
[1748189575369,26.0710121,169.77,169.75,74.12]
[1748189576759,26.0710121,169.76,169.75,74.12]
[1748189579170,26.0710121,169.76,169.74,84.64]
[1748189579368,26.0,169.78,169.75,74.14]
[1748189579573,26.0,169.77,169.75,74.14]
[1748189580051,26.0,169.77,169.75,38.86]
[1748189580257,26.0,169.77,169.76,35.28]
[1748189580463,52.0710121,169.77,169.76,35.28]
[1748189582388,26.0710121,169.77,169.76,35.28]
[1748189582694,26.0710121,169.78,169.76,35.28]
[1748189583565,33.5775,169.81,169.76,35.28]
[1748189583917,26.0710121,169.78,169.76,35.28]
[1748189585981,26.0710121,169.78,169.77,38.86]
[1748189586856,26.0710121,169.79,169.77,38.86]
[1748189588797,26.0710121,169.78,169.77,38.86]
[1748189593590,33.5775,169.81,169.77,120.36]
[1748189593792,26.0710121,169.8,169.77,120.36]
[1748189593974,26.0710121,169.78,169.77,120.36]
[1748189598597,26.0710121,169.78,169.77,38.86]
[1748189600878,26.0710121,169.78,169.77,74.14]
[1748189604501,26.0710121,169.78,169.77,155.64]
[1748189605802,26.0710121,169.78,169.77,120.36]
[1748189605985,26.0710121,169.78,169.77,155.64]
[1748189606187,26.0710121,169.78,169.77,38.86]
[1748189606494,26.0710121,169.78,169.77,74.14]
[1748189606675,52.0710121,169.78,169.77,74.14]
[1748189608917,26.0,169.76,169.75,84.68]
[1748189609086,26.0,169.76,169.75,123.48]
[1748189609289,52.0710121,169.76,169.75,123.48]
[1748189610002,52.0710121,169.76,169.75,158.76]
[1748189611107,52.0710121,169.76,169.75,123.48]
[1748189611285,70.86282253,169.76,169.75,158.76]
[1748189611487,70.86282253,169.76,169.75,123.48]
[1748189611703,72.42102253,169.76,169.66,81.5]
[1748189611906,26.0710121,169.69,169.66,81.5]
[1748189612209,26.0710121,169.68,169.66,81.5]
[1748189612503,26.0710121,169.68,169.63,81.5]
[1748189612884,26.0710121,169.68,169.64,35.28]
[1748189613086,26.0710121,169.68,169.64,81.5]
[1748189613285,26.0710121,169.68,169.65,35.28]
[1748189613892,46.35001043,169.76,169.65,35.28]
[1748189614304,26.0710121,169.7,169.65,61.3510121]
[1748189614507,46.35001043,169.76,169.66,26.0710121]
[1748189614713,26.0710121,169.72,169.67,26.0710121]
[1748189614894,26.0710121,169.72,169.68,35.3]
[1748189615097,26.0710121,169.71,169.68,116.8]
[1748189617706,26.0710121,169.71,169.69,123.42]
[1748189618308,26.0710121,169.72,169.69,123.42]
[1748189619187,26.0710121,169.72,169.69,204.92]
[1748189622795,26.0710121,169.71,169.69,204.92]
[1748189624014,27.5582,169.76,169.69,204.92]
[1748189624211,26.0710121,169.71,169.69,204.92]
[1748189624714,26.0710121,169.76,169.7,26.0710121]
[1748189624888,26.0710121,169.76,169.71,35.3]
[1748189625292,6.4782,169.79,169.71,61.3710121]
[1748189625491,5.80556273,169.81,169.73,26.0710121]
[1748189625716,26.0710121,169.8,169.74,61.3710121]
[1748189625893,26.0710121,169.8,169.75,38.72]
[1748189626798,26.0710121,169.79,169.75,38.72]
[1748189628019,26.0710121,169.78,169.75,38.72]
[1748189630825,26.0710121,169.79,169.75,38.72]
[1748189631001,26.0710121,169.79,169.75,120.22]
[1748189632929,26.0710121,169.77,169.75,120.22]
[1748189633132,26.0710121,169.76,169.75,120.22]
[1748189633935,26.0710121,169.76,169.75,155.5]
[1748189635524,26.0710121,169.76,169.75,120.22]
[1748189635708,26.0710121,169.76,169.75,155.5]
[1748189636923,26.0710121,169.76,169.75,74.0]
[1748189637837,26.0710121,169.76,169.75,38.72]
[1748189638036,26.0710121,169.76,169.75,74.0]
[1748189641333,26.0710121,169.76,169.74,166.18]
[1748189641637,26.0,169.79,169.75,74.0]
[1748189641830,26.0,169.79,169.76,74.0]
[1748189642027,26.0,169.77,169.74,166.18]
[1748189642212,26.0,169.77,169.75,74.0]
[1748189642405,26.0,169.77,169.75,38.72]
[1748189642605,32.0202,169.77,169.76,35.28]
[1748189642929,58.0912121,169.77,169.76,35.28]
[1748189644634,6.0202,169.77,169.76,35.28]
[1748189644831,26.0710121,169.77,169.76,35.28]
[1748189647014,52.0710121,169.77,169.76,74.0]
[1748189647634,26.0,169.75,169.74,84.68]
[1748189647815,70.86282253,169.75,169.74,158.6]
[1748189648213,72.42262253,169.75,169.74,158.6]
[1748189649738,26.0710121,169.75,169.74,158.6]
[1748189649916,26.0710121,169.76,169.74,158.6]
[1748189650428,26.0710121,169.75,169.74,158.6]
[1748189658836,26.0710121,169.75,169.74,73.92]
[1748189663236,26.0710121,169.75,169.71,84.7]
[1748189663437,26.0710121,169.72,169.71,84.7]
[1748189663619,26.0710121,169.72,169.71,158.64]
[1748189664637,30.21706273,169.77,169.71,158.64]
[1748189664842,26.0710121,169.72,169.71,158.64]
[1748189665421,28.26885422,169.72,169.71,158.64]
[1748189667237,28.26885422,169.72,169.71,123.34]
[1748189667544,28.26885422,169.72,169.71,158.64]
[1748189671125,28.26885422,169.72,169.71,158.66]
[1748189682957,2.19784212,169.72,169.71,158.66]
[1748189683272,2.19784212,169.74,169.71,184.7310121]
[1748189683569,2.19784212,169.74,169.73,26.0710121]
[1748189683778,2.19784212,169.74,169.73,61.3710121]
[1748189684080,2.19784212,169.77,169.73,61.3710121]
[1748189684231,28.26885422,169.77,169.73,35.3]
[1748189684936,26.0710121,169.77,169.73,35.3]
[1748189686363,26.0,169.81,169.73,61.3710121]
[1748189686552,26.0710121,169.79,169.74,26.0710121]
[1748189686751,26.0710121,169.78,169.73,142.8710121]
[1748189686941,26.0710121,169.77,169.74,73.86]
[1748189687140,26.0710121,169.77,169.74,155.36]
[1748189687458,26.0710121,169.76,169.74,81.5]
[1748189687761,26.0710121,169.76,169.75,73.86]
[1748189688237,26.0710121,169.76,169.71,166.2]
[1748189688563,26.0710121,169.73,169.72,73.86]
[1748189690047,26.0710121,169.75,169.72,73.86]
[1748189690642,26.0710121,169.74,169.72,73.86]
[1748189691658,26.0710121,169.75,169.72,73.86]
[1748189692053,26.0710121,169.76,169.72,73.86]
[1748189692746,26.0710121,169.77,169.72,99.9310121]
[1748189692950,26.0710121,169.77,169.72,181.4310121]
[1748189693144,26.0710121,169.78,169.73,26.0710121]
[1748189693351,26.0710121,169.77,169.72,181.4310121]
[1748189693654,26.0710121,169.76,169.72,155.36]
[1748189694042,26.0710121,169.77,169.72,181.4310121]
[1748189697767,26.0710121,169.77,169.72,81.5]
[1748189697969,0.14216157,169.8,169.73,73.86]
[1748189697970,26.0710121,169.74,169.73,73.86]
[1748189698376,26.0710121,169.75,169.73,73.86]
[1748189698747,26.0710121,169.76,169.73,155.36]
[1748189699843,26.0710121,169.77,169.73,155.36]
[1748189701457,26.0,169.81,169.73,155.36]
[1748189701677,26.0710121,169.77,169.73,155.36]
[1748189702263,26.0,169.81,169.73,181.4310121]
[1748189702449,4.21706273,169.83,169.73,181.4310121]
[1748189702450,26.0710121,169.79,169.74,26.0710121]
[1748189703176,26.0710121,169.8,169.74,26.0710121]
[1748189704154,26.0710121,169.8,169.75,26.0710121]
[1748189704356,26.0,169.83,169.75,25.0720121]
[1748189704686,26.0710121,169.8,169.75,25.0720121]
[1748189704978,26.0710121,169.8,169.74,44.72066096]
[1748189705481,26.0710121,169.8,169.74,126.22066096]
[1748189706170,26.0710121,169.8,169.75,26.0710121]
[1748189706477,26.0710121,169.81,169.75,26.0710121]
[1748189706776,26.0710121,169.8,169.76,84.68]
[1748189706978,26.0710121,169.8,169.77,35.28]
[1748189707277,26.0710121,169.8,169.77,116.78]
[1748189709585,26.0710121,169.81,169.77,116.78]
[1748189711266,26.0710121,169.78,169.77,81.5]
[1748189711468,26.0710121,169.78,169.77,155.26]
[1748189711786,26.0710121,169.79,169.77,155.26]
[1748189712785,26.0,169.84,169.77,155.26]
[1748189713088,26.0710121,169.81,169.77,155.26]
[1748189714364,26.0710121,169.8,169.77,155.26]
[1748189715293,26.0710121,169.81,169.77,155.26]
[1748189717005,26.0710121,169.79,169.77,155.26]
[1748189719869,26.0710121,169.8,169.77,155.26]
[1748189720269,26.0710121,169.78,169.77,119.98]
[1748189720468,26.0710121,169.78,169.77,73.76]
[1748189720691,26.0710121,169.79,169.77,73.76]
[1748189721086,26.0710121,169.79,169.78,35.28]
[1748189724271,0.14216157,169.83,169.78,35.28]
[1748189724478,26.0710121,169.79,169.78,35.28]
[1748189726293,28.26618049,169.79,169.78,35.28]
[1748189728285,28.26618049,169.79,169.78,116.78]
[1748189730113,2.19516839,169.79,169.78,116.78]
[1748189730904,26.0710121,169.81,169.78,116.78]
[1748189731288,26.0710121,169.8,169.78,116.78]
[1748189731604,30.21706273,169.85,169.78,116.78]
[1748189731811,26.0710121,169.8,169.78,116.78]
[1748189732385,2.19745801,169.79,169.78,116.78]
[1748189732678,2.19745801,169.79,169.78,155.26]
[1748189734602,2.19745801,169.79,169.78,239.92]
[1748189736609,28.26847011,169.79,169.78,239.92]
[1748189739405,28.26847011,169.79,169.78,155.26]
[1748189740377,28.26847011,169.79,169.77,84.66]
[1748189740586,26.0710121,169.78,169.77,84.66]
[1748189740910,28.26847011,169.78,169.77,158.34]
[1748189741312,28.26847011,169.78,169.77,123.06]
[1748189741602,28.26847011,169.78,169.77,158.34]
[1748189742308,28.26847011,169.78,169.77,123.06]
[1748189742507,28.26847011,169.78,169.77,158.34]
[1748189743289,31.6479682,169.78,169.77,158.34]
[1748189744795,35.86503093,169.78,169.77,158.34]
[1748189747115,31.6479682,169.78,169.77,158.34]
[1748189747597,31.6479682,169.78,169.77,123.06]
[1748189747799,31.6479682,169.78,169.77,158.34]
[1748189748492,31.79012977,169.78,169.77,123.06]
[1748189748786,27.6213,169.75,169.67,81.5]
[1748189749048,26.0710121,169.7,169.68,73.68]
[1748189749206,26.0710121,169.71,169.69,35.28]
[1748189751218,26.0710121,169.7,169.69,35.28]
[1748189753709,26.0710121,169.7,169.68,38.4]
[1748189753915,3.37949809,169.74,169.68,38.4]
[1748189753916,26.0710121,169.69,169.68,38.4]
[1748189754521,26.0710121,169.69,169.68,73.7]
[1748189754721,26.0710121,169.69,169.68,38.4]
[1748189754916,26.0710121,169.69,169.68,73.7]
[1748189756501,26.0710121,169.7,169.68,73.7]
[1748189757603,26.0710121,169.69,169.68,73.7]
[1748189761526,26.0,169.71,169.68,73.7]
[1748189761831,26.0710121,169.69,169.68,73.7]
[1748189762014,26.0710121,169.69,169.68,38.4]
[1748189762208,53.75367367,169.69,169.68,38.4]
[1748189762403,18.79181043,169.68,169.57,81.5]
[1748189762608,26.0710121,169.6,169.58,73.7]
[1748189762814,26.0710121,169.59,169.58,73.7]
[1748189763018,26.0710121,169.6,169.58,73.7]
[1748189763234,26.0710121,169.61,169.58,73.7]
[1748189764527,26.0710121,169.67,169.6,26.0710121]
[1748189764728,4.21706273,169.69,169.64,26.0710121]
[1748189764907,4.21706273,169.69,169.65,99.7910121]
[1748189766128,26.0710121,169.71,169.65,99.7910121]
[1748189766310,26.0710121,169.7,169.65,73.72]
[1748189767223,1.5405,169.73,169.65,73.72]
[1748189767426,26.0710121,169.69,169.65,73.72]
[1748189767735,26.0,169.71,169.66,84.72]
[1748189767931,26.0710121,169.67,169.66,120.02]
[1748189769120,26.0710121,169.67,169.66,158.44]
[1748189769834,26.0710121,169.67,169.66,123.14]
[1748189770007,26.0710121,169.67,169.66,158.44]
[1748189770625,33.8031121,169.67,169.66,158.44]
[1748189771917,53.5896121,169.67,169.66,158.44]
[1748189772226,52.0710121,169.67,169.66,158.44]
[1748189776628,26.14216157,169.67,169.62,35.3]
[1748189776938,26.0710121,169.63,169.62,35.3]
[1748189781154,28.94642125,169.68,169.62,35.3]
[1748189781361,26.0710121,169.63,169.62,35.3]
[1748189781731,26.0710121,169.63,169.61,119.84]
[1748189782056,0.14216157,169.67,169.62,35.32]
[1748189782243,26.0710121,169.63,169.62,35.32]
[1748189783466,26.0710121,169.63,169.6,84.74]
[1748189783758,26.0710121,169.63,169.62,73.66]
[1748189783759,26.0,169.63,169.62,73.66]
[1748189784751,52.0710121,169.63,169.62,73.66]
[1748189785251,52.0710121,169.63,169.62,38.34]
[1748189785550,52.0710121,169.63,169.62,73.66]
[1748189785747,52.0710121,169.63,169.62,38.34]
[1748189785929,52.0710121,169.63,169.62,73.66]
[1748189786329,54.26056593,169.63,169.62,73.66]
[1748189786756,54.26056593,169.63,169.62,38.34]
[1748189786937,54.26056593,169.63,169.62,73.66]
[1748189787325,52.0710121,169.63,169.62,73.66]
[1748189788138,52.21317367,169.63,169.62,73.66]
[1748189788430,52.21317367,169.63,169.55,81.5]
[1748189788639,26.0710121,169.56,169.5,133.5710121]
[1748189788843,26.0710121,169.55,169.5,133.5710121]
[1748189789554,26.0710121,169.55,169.51,35.32]
[1748189789937,26.0710121,169.54,169.51,35.32]
[1748189790256,26.0710121,169.54,169.52,35.32]
[1748189791361,26.0710121,169.54,169.52,116.82]
[1748189791858,26.0710121,169.53,169.49,83.0238]
[1748189792046,52.21317367,169.6,169.49,83.0238]
[1748189792047,26.0710121,169.52,169.5,35.32]
[1748189792564,7.8756,169.59,169.5,35.32]
[1748189792565,26.0710121,169.53,169.5,35.32]
[1748189793362,11.23828655,169.59,169.5,35.32]
[1748189793536,26.0710121,169.53,169.5,35.32]
[1748189795057,26.0710121,169.53,169.51,35.32]
[1748189795250,26.0710121,169.52,169.51,35.32]
[1748189796164,26.0710121,169.52,169.47,81.5]
[1748189796338,26.0710121,169.49,169.48,35.32]
[1748189797669,26.0710121,169.49,169.48,73.68]
[1748189799867,8.27836157,169.52,169.48,73.68]
[1748189799868,0.14216157,169.51,169.48,73.68]
[1748189800078,26.0710121,169.49,169.48,73.68]
[1748189800367,1.5568,169.45,169.34,26.0710121]
[1748189800563,1.5568,169.45,169.34,81.5]
[1748189800564,26.0710121,169.39,169.34,81.5]
[1748189800863,26.0710121,169.39,169.33,44.72066096]
[1748189800864,26.0710121,169.39,169.35,35.32]
[1748189801088,26.0710121,169.38,169.35,35.32]
[1748189801373,26.0,169.44,169.35,35.32]
[1748189801374,26.0710121,169.37,169.35,35.32]
[1748189803242,26.0,169.44,169.35,35.32]
[1748189803468,26.0710121,169.37,169.35,35.32]
[1748189803647,26.0710121,169.41,169.36,26.0710121]
[1748189803846,26.0710121,169.41,169.35,61.3910121]
[1748189804081,8.1362,169.45,169.38,26.0710121]
[1748189804082,26.0710121,169.43,169.38,26.0710121]
[1748189804278,26.0710121,169.43,169.39,35.34]
[1748189805574,26.0710121,169.42,169.39,35.34]
[1748189805750,26.0710121,169.41,169.39,35.34]
[1748189806558,26.0710121,169.4,169.39,35.34]
[1748189807261,26.0710121,169.4,169.34,26.0710121]
[1748189807462,26.0710121,169.39,169.35,120.16]
[1748189807775,26.0710121,169.39,169.35,158.46]
[1748189807964,26.0710121,169.4,169.35,184.5310121]
[1748189808674,26.0710121,169.38,169.36,35.34]
[1748189808853,26.0710121,169.39,169.36,35.34]
[1748189809849,26.0710121,169.38,169.36,35.34]
[1748189810048,26.0710121,169.39,169.36,35.34]
[1748189811079,26.0710121,169.38,169.36,35.34]
[1748189812573,26.0710121,169.37,169.35,84.82]
[1748189812887,27.6278121,169.4,169.36,73.68]
[1748189814087,26.0710121,169.37,169.36,73.68]
[1748189814273,26.0710121,169.37,169.36,38.32]
[1748189814470,26.0710121,169.37,169.36,73.68]
[1748189816992,26.0710121,169.37,169.25,26.0]
[1748189817167,26.0,169.34,169.26,38.32]
[1748189817480,26.0710121,169.28,169.26,123.16]
[1748189817666,26.0710121,169.29,169.26,123.16]
[1748189818180,26.0710121,169.28,169.26,123.16]
[1748189818363,26.0,169.34,169.27,35.36]
[1748189818555,26.0710121,169.29,169.27,35.36]
[1748189819275,26.0710121,169.28,169.27,35.36]
[1748189820386,26.0710121,169.28,169.26,123.16]
[1748189820586,26.0710121,169.29,169.27,35.36]
[1748189821386,26.0,169.34,169.27,61.4310121]
[1748189821585,26.0710121,169.32,169.27,61.4310121]
[1748189821790,6.67936157,169.37,169.27,61.4310121]
[1748189821791,6.5372,169.37,169.28,26.0710121]
[1748189821971,26.0710121,169.34,169.29,26.0710121]
[1748189822171,26.0710121,169.33,169.28,44.72066096]
[1748189822798,26.0,169.36,169.28,44.72066096]
[1748189823089,26.0710121,169.33,169.28,44.72066096]
[1748189823691,26.0,169.36,169.28,44.72066096]
[1748189823892,26.0710121,169.33,169.28,44.72066096]
[1748189824272,26.0710121,169.32,169.27,26.0710121]
[1748189824470,26.0710121,169.31,169.28,35.38]
[1748189824989,26.0710121,169.3,169.28,35.38]
[1748189825172,26.0710121,169.3,169.28,116.88]
[1748189825971,26.0710121,169.29,169.28,116.88]
[1748189828079,26.0710121,169.29,169.26,123.16]
[1748189828279,26.0710121,169.27,169.26,123.16]
[1748189828482,26.0710121,169.27,169.26,158.54]
[1748189828796,26.0710121,169.27,169.26,158.56]
[1748189828797,59.8984121,169.27,169.26,158.56]
[1748189829179,62.84838466,169.27,169.26,158.56]
[1748189829675,62.99054623,169.27,169.15,26.0710121]
[1748189829883,33.8274,169.27,169.17,26.0710121]
[1748189830177,26.0710121,169.22,169.17,26.0710121]
[1748189830874,26.0710121,169.22,169.18,35.38]
[1748189831397,27.6442,169.27,169.2,26.0710121]
[1748189831574,26.0710121,169.28,169.23,26.0710121]
[1748189831775,26.0710121,169.28,169.24,35.38]
[1748189831984,26.0710121,169.27,169.24,35.38]
[1748189832289,26.0,169.3,169.24,35.38]
[1748189832493,26.0710121,169.27,169.24,35.38]
[1748189832792,26.0,169.3,169.24,35.38]
[1748189832793,26.0710121,169.26,169.24,35.38]
[1748189834109,26.0710121,169.27,169.24,35.38]
[1748189836099,26.0710121,169.26,169.24,35.38]
[1748189837593,26.0,169.3,169.25,123.5]
[1748189837974,26.0710121,169.26,169.25,123.5]
[1748189838796,26.0710121,169.27,169.25,123.5]
[1748189839474,26.0,169.3,169.25,123.5]
[1748189839475,26.0710121,169.26,169.25,123.5]
[1748189840283,26.0710121,169.26,169.25,158.88]
[1748189842897,26.0,169.3,169.25,158.88]
[1748189843091,26.0710121,169.26,169.25,158.88]
[1748189843994,26.0710121,169.26,169.25,84.92]
[1748189844174,26.0710121,169.26,169.25,158.88]
[1748189844990,26.0,169.28,169.25,158.88]
[1748189845283,26.0710121,169.26,169.25,158.88]
[1748189856117,53.5886121,169.26,169.12,6.0358]
[1748189856288,26.0710121,169.18,169.14,92.64964886]
[1748189856491,26.0710121,169.18,169.14,57.24964886]
[1748189856702,26.0710121,169.19,169.15,35.4]
[1748189857093,26.0710121,169.2,169.15,61.4710121]
[1748189857304,26.0710121,169.22,169.16,44.72066096]
[1748189857509,26.0710121,169.22,169.17,84.94]
[1748189857702,26.0710121,169.22,169.18,35.4]
[1748189858029,26.0710121,169.23,169.18,61.4710121]
[1748189858229,26.0710121,169.25,169.2,26.0710121]
[1748189858400,1.5176,169.26,169.21,74.0]
[1748189858715,26.0710121,169.25,169.21,74.0]
[1748189859403,26.0710121,169.24,169.21,74.0]
[1748189859716,26.0710121,169.25,169.21,74.0]
[1748189861305,26.0710121,169.26,169.21,100.0710121]
[1748189861904,26.0710121,169.26,169.21,74.0]
[1748189862215,26.0710121,169.25,169.21,74.0]
[1748189862714,3.35648655,169.27,169.21,74.0]
[1748189862915,26.0710121,169.26,169.21,100.0710121]
[1748189863520,26.0710121,169.25,169.21,74.0]
[1748189863718,26.0710121,169.25,169.22,84.94]
[1748189864323,26.0710121,169.26,169.22,84.94]
[1748189864531,26.0710121,169.27,169.22,111.0110121]
[1748189865626,5.73466273,169.3,169.22,111.0110121]
[1748189865929,26.0710121,169.27,169.22,111.0110121]
[1748189866815,3.35737143,169.3,169.26,26.0710121]
[1748189867005,3.35737143,169.3,169.27,74.3]
[1748189867206,3.35737143,169.3,169.27,100.3710121]
[1748189867507,3.35737143,169.3,169.27,74.3]
[1748189867706,5.54324143,169.3,169.27,74.3]
[1748189867905,2.18587,169.3,169.27,74.3]
[1748189868316,28.2568821,169.3,169.27,74.3]
[1748189868499,2.18587,169.3,169.27,74.3]
[1748189868923,26.0710121,169.31,169.27,74.3]
[1748189871817,26.0710121,169.31,169.27,155.8]
[1748189872126,26.0710121,169.32,169.27,181.8710121]
[1748189872603,26.0710121,169.32,169.27,100.3710121]
[1748189872806,3.35737143,169.33,169.27,100.3710121]
[1748189873021,26.0710121,169.32,169.27,100.3710121]
[1748189873215,29.42838353,169.33,169.28,26.0710121]
[1748189874130,26.0710121,169.33,169.28,26.0710121]
[1748189874525,26.0710121,169.33,169.28,107.5710121]
[1748189874926,5.01417143,169.35,169.29,18.64964886]
[1748189875129,26.0710121,169.34,169.3,35.38]
[1748189875319,3.35737143,169.36,169.31,26.0710121]
[1748189875520,29.42838353,169.36,169.31,26.0710121]
[1748189875719,3.35737143,169.36,169.32,26.0710121]
[1748189875920,3.35737143,169.36,169.33,74.28]
[1748189876340,26.0710121,169.37,169.33,74.28]
[1748189876915,3.35737143,169.39,169.33,100.3510121]
[1748189877112,26.0710121,169.38,169.33,100.3510121]
[1748189879050,26.0,169.41,169.33,100.3510121]
[1748189879234,26.0710121,169.39,169.34,44.72066096]
[1748189879441,26.0710121,169.39,169.35,84.9]
[1748189879943,26.0710121,169.4,169.35,110.9710121]
[1748189880151,1.6149,169.43,169.36,26.0710121]
[1748189880323,1.6149,169.43,169.37,61.4510121]
[1748189880529,26.0710121,169.43,169.38,44.72066096]
[1748189880724,26.0710121,169.43,169.39,38.88]
[1748189881047,26.0710121,169.44,169.39,64.9510121]
[1748189881547,26.0710121,169.44,169.39,146.4510121]
[1748189881747,26.0,169.46,169.39,146.4510121]
[1748189881949,26.0,169.46,169.39,64.9510121]
[1748189882135,26.0710121,169.44,169.39,64.9510121]
[1748189883437,26.0710121,169.43,169.39,38.88]
[1748189885257,26.0,169.46,169.39,38.88]
[1748189885428,26.0710121,169.44,169.39,64.9510121]
[1748189885755,26.0710121,169.45,169.4,18.64964886]
[1748189885962,26.0710121,169.45,169.41,35.38]
[1748189886432,26.0710121,169.44,169.41,35.38]
[1748189887344,26.0710121,169.43,169.41,35.38]
[1748189887947,26.0710121,169.42,169.36,44.86282253]
[1748189888248,26.0710121,169.4,169.37,74.22]
[1748189888447,26.0710121,169.38,169.37,38.86]
[1748189888654,26.0710121,169.38,169.37,74.22]
[1748189890932,1.5362,169.4,169.37,74.22]
[1748189891158,26.0710121,169.38,169.37,74.22]
[1748189892137,1.5362,169.4,169.37,74.22]
[1748189892344,26.0710121,169.38,169.37,74.22]
[1748189892932,26.0710121,169.38,169.35,84.9]
[1748189893137,26.0710121,169.36,169.35,84.9]